bitfinex/quotes_ETHUSD_20250222
["timestamp","ask_amount","ask_price","bid_price","bid_amount"]
[1740225740015,3.64805,2741.2,2741.0,0.09868437]
[1740225741490,3.64785,2741.4,2741.0,0.09868437]
[1740225741817,3.64804,2741.2,2741.0,0.09868437]
[1740225742205,3.64785,2741.4,2741.0,0.09868437]
[1740225742406,3.6479,2741.3,2741.0,0.09868437]
[1740225742713,3.64805,2741.2,2741.0,0.09868437]
[1740225743208,3.64785,2741.4,2741.0,0.09868437]
[1740225744612,3.64772,2741.5,2741.0,0.09868437]
[1740225744817,3.64772,2741.5,2741.0,0.47938681]
[1740225745389,3.64761,2741.6,2741.0,0.47938681]
[1740225745584,3.6478,2741.4,2741.0,0.47938681]
[1740225746405,6.64739,2741.7,2741.2,3.64803]
[1740225746715,6.64738,2741.7,2741.3,0.09831198]
[1740225746918,4.45175,2741.9,2741.4,0.06]
[1740225747120,3.64715,2741.9,2741.4,0.15831198]
[1740225747421,3.64698,2742.0,2741.4,3.80605198]
[1740225748209,3.64698,2742.0,2741.5,3.64761]
[1740225748417,3.64698,2742.0,2741.6,0.09780121]
[1740225748723,3.64698,2742.0,2741.6,0.84312433]
[1740225755644,3.64726,2741.8,2741.6,0.84312433]
[1740225755849,3.64726,2741.8,2741.6,0.09780121]
[1740225756705,7.29404,2742.0,2741.6,0.09780121]
[1740225756906,3.64698,2742.0,2741.6,0.09780121]
[1740225760640,7.29407,2742.0,2741.6,0.09780121]
[1740225760843,4.24114248,2742.3,2741.6,0.47834933]
[1740225761135,3.64708,2742.0,2741.6,0.47834933]
[1740225761643,7.29416,2742.0,2741.6,0.47834933]
[1740225762640,3.64708,2742.0,2741.6,0.47834933]
[1740225762830,3.0,2742.4,2741.7,0.06]
[1740225763012,3.64665,2742.3,2741.8,0.09688987]
[1740225763211,3.64665,2742.3,2741.7,0.06]
[1740225763445,3.64665,2742.3,2741.8,0.09680479]
[1740225763651,6.64645,2742.4,2741.8,3.64714]
[1740225763866,6.64645,2742.4,2741.9,0.52751879]
[1740225764965,3.64636,2742.5,2741.9,4.17451879]
[1740225765363,3.64646,2742.4,2741.9,4.17451879]
[1740225766278,3.64636,2742.5,2741.9,4.17451879]
[1740225766840,3.64657,2742.3,2741.9,0.52751879]
[1740225767731,7.29278,2742.5,2742.0,0.41746888]
[1740225768039,3.64648,2742.4,2742.1,0.09680121]
[1740225769175,3.64657,2742.3,2742.1,0.09680121]
[1740225769676,3.64657,2742.3,2741.9,0.430714]
[1740225769842,3.64657,2742.3,2742.2,0.09680121]
[1740225770041,3.64657,2742.3,2741.9,0.430714]
[1740225770239,3.64657,2742.3,2742.2,0.09680121]
[1740225770444,3.64657,2742.3,2741.9,0.430714]
[1740225770661,7.29323,2742.3,2742.2,0.09680121]
[1740225770828,3.64657,2742.3,2741.9,0.430714]
[1740225771029,7.29323,2742.3,2742.0,0.09680121]
[1740225771444,3.64657,2742.3,2742.0,0.09680121]
[1740225773097,7.29322,2742.3,2742.0,0.09680121]
[1740225773295,3.64657,2742.3,2742.0,0.09680121]
[1740225773654,3.64657,2742.3,2742.0,0.51427373]
[1740225774702,3.64677,2742.2,2742.0,0.09680121]
[1740225775564,3.64684,2742.1,2742.0,0.09680121]
[1740225776098,4.46064,2742.1,2742.0,0.09680121]
[1740225776309,3.64723,2741.8,2741.7,5.37]
[1740225776469,3.64723,2741.8,2741.5,0.06]
[1740225776667,3.64723,2741.8,2741.6,0.543]
[1740225778812,3.64711,2741.9,2741.6,0.543]
[1740225779872,3.64711,2741.9,2741.7,0.08957962]
[1740225780072,3.64723,2741.8,2741.7,0.08957962]
[1740225782628,3.64723,2741.8,2741.5,0.06]
[1740225782831,3.64723,2741.8,2741.6,0.08957962]
[1740225783031,3.6471,2741.9,2741.6,0.08957962]
[1740225783327,0.8138,2742.1,2741.6,0.08957962]
[1740225783687,3.64724,2741.8,2741.6,0.08957962]
[1740225785506,0.756,2741.7,2741.0,0.06]
[1740225785788,3.64798,2741.3,2741.0,0.06]
[1740225786420,3.64784,2741.4,2741.0,0.06]
[1740225786735,3.64792,2741.3,2741.0,0.06]
[1740225786889,3.64792,2741.3,2741.0,0.430855]
[1740225788136,3.64767,2741.5,2741.0,0.430855]
[1740225788633,3.64784,2741.4,2741.0,0.430855]
[1740225792558,3.64779,2741.4,2741.0,0.06]
[1740225792911,3.64767,2741.5,2741.0,0.06]
[1740225793158,7.2954,2741.5,2741.0,0.06]
[1740225793338,7.2954,2741.5,2741.0,0.430844]
[1740225793545,0.756,2741.7,2741.0,0.430844]
[1740225793757,3.64773,2741.5,2741.0,0.430844]
[1740225794051,3.64779,2741.4,2741.0,0.430844]
[1740225794614,3.64779,2741.4,2741.1,0.08304047]
[1740225794814,3.6475,2741.6,2741.1,0.08304047]
[1740225795255,3.64772,2741.5,2741.1,0.08304047]
[1740225796343,3.6478,2741.4,2741.1,0.08304047]
[1740225797291,3.6479,2741.3,2741.1,0.08304047]
[1740225797490,7.90617248,2741.2,2741.1,0.08304047]
[1740225797693,3.64896,2740.6,2740.3,0.06]
[1740225797894,3.64896,2740.6,2739.9,5.37]
[1740225797895,3.64889,2740.6,2740.1,0.06]
[1740225798178,3.64933,2740.3,2740.1,0.543]
[1740225798381,3.64933,2740.3,2739.9,5.43]
[1740225798602,3.6495,2740.1,2739.6,0.262]
[1740225798776,3.6495,2740.1,2739.6,5.632]
[1740225798949,3.64967,2740.0,2739.6,5.632]
[1740225799154,3.6495,2740.1,2739.7,0.5632]
[1740225799356,4.25814248,2740.3,2739.6,5.37]
[1740225799357,3.64977,2739.9,2739.6,5.37]
[1740225799655,3.64952,2740.1,2739.6,5.37]
[1740225800388,3.64963,2740.0,2739.6,5.37]
[1740225800951,3.64946,2740.2,2739.6,5.37]
[1740225801152,7.90742248,2740.3,2739.6,9.02011]
[1740225801407,3.64939,2740.2,2739.6,9.02011]
[1740225803064,7.90742248,2740.3,2739.6,9.02011]
[1740225803258,7.90742248,2740.3,2739.7,3.64993]
[1740225803465,3.64938,2740.2,2739.6,9.02011]
[1740225803662,3.64938,2740.2,2739.6,3.65011]
[1740225803985,7.90742248,2740.3,2739.6,3.65011]
[1740225804353,3.6495,2740.1,2739.6,3.65011]
[1740225804989,3.6495,2740.1,2739.4,3.71041]
[1740225805409,0.7708,2739.8,2739.2,3.71066]
[1740225805601,3.65005,2739.7,2739.2,3.71066]
[1740225806397,0.7708,2739.8,2739.2,3.71066]
[1740225806585,4.42071,2739.8,2739.2,3.71066]
[1740225808334,0.7708,2739.8,2739.2,3.71066]
[1740225808676,0.7708,2739.8,2739.3,3.6505]
[1740225809679,0.7708,2739.8,2739.4,0.08216806]
[1740225817344,3.43654248,2740.0,2739.4,0.08216806]
[1740225817522,3.807,2740.1,2739.7,0.06]
[1740225818043,3.807,2740.1,2739.8,0.08449662]
[1740225818351,3.807,2740.1,2739.7,0.06]
[1740225818561,3.807,2740.1,2739.9,0.08449662]
[1740225818720,3.807,2740.1,2739.7,0.06]
[1740225818922,7.45651,2740.1,2740.0,0.08449662]
[1740225819124,7.45651,2740.1,2739.7,0.06]
[1740225819339,7.45651,2740.1,2740.0,0.08449662]
[1740225819512,7.45651,2740.1,2739.7,0.06]
[1740225819710,7.45651,2740.1,2740.0,0.08449662]
[1740225819958,7.45651,2740.1,2739.7,0.06]
[1740225820105,7.45651,2740.1,2740.0,0.08449662]
[1740225820346,7.45651,2740.1,2739.7,0.06]
[1740225820544,7.45651,2740.1,2740.0,0.08449662]
[1740225820744,7.45651,2740.1,2739.7,0.06]
[1740225820994,7.45651,2740.1,2740.0,0.08449662]
[1740225821157,3.807,2740.1,2739.7,0.06]
[1740225821360,3.807,2740.1,2740.0,0.08449662]
[1740225821558,3.807,2740.1,2739.7,0.06]
[1740225821768,3.807,2740.1,2740.0,0.08449662]
[1740225821769,7.4565,2740.1,2740.0,0.08449662]
[1740225822286,7.4565,2740.1,2739.7,0.06]
[1740225822490,7.4565,2740.1,2740.0,0.08449662]
[1740225822678,7.4565,2740.1,2739.7,0.06]
[1740225822879,7.4565,2740.1,2740.0,0.08435834]
[1740225823080,7.4565,2740.1,2739.7,0.06]
[1740225823279,7.4565,2740.1,2740.0,0.08435834]
[1740225823461,7.4565,2740.1,2739.7,0.06]
[1740225823663,7.4565,2740.1,2739.8,0.08435834]
[1740225823962,7.4565,2740.1,2739.7,0.06]
[1740225824152,7.4565,2740.1,2739.9,0.08435834]
[1740225824348,7.4565,2740.1,2739.7,0.06]
[1740225824553,7.4565,2740.1,2740.0,0.08435834]
[1740225824799,7.4565,2740.1,2739.7,0.06]
[1740225825296,7.4565,2740.1,2739.8,0.08435834]
[1740225825698,7.4565,2740.1,2739.7,0.06]
[1740225825906,7.4565,2740.1,2739.9,0.08435834]
[1740225826089,7.4565,2740.1,2739.7,0.06]
[1740225826290,7.4565,2740.1,2740.0,0.08435834]
[1740225826492,7.4565,2740.1,2739.7,0.06]
[1740225826659,0.807,2740.1,2740.0,0.08435834]
[1740225826859,0.807,2740.1,2739.7,0.06]
[1740225827202,4.45657,2740.1,2739.8,0.08435834]
[1740225827738,4.45657,2740.1,2739.9,0.08435834]
[1740225828101,4.45657,2740.1,2739.7,0.06]
[1740225828314,4.45657,2740.1,2740.0,0.08435834]
[1740225828458,4.45657,2740.1,2739.7,0.06]
[1740225828660,4.45657,2740.1,2739.8,0.08435834]
[1740225828900,4.45657,2740.1,2739.7,0.06]
[1740225829208,3.64965,2740.0,2739.9,0.08435834]
[1740225829359,3.64965,2740.0,2739.7,0.06]
[1740225829792,3.64965,2740.0,2739.8,0.08435834]
[1740225830105,3.64965,2740.0,2739.7,0.06]
[1740225830322,7.57821019,2740.0,2739.9,0.08435834]
[1740225830605,7.57821019,2740.0,2739.8,0.08122938]
[1740225830606,4.43356,2739.9,2739.8,0.08122938]
[1740225830809,3.65043,2739.4,2739.2,5.37]
[1740225830961,3.65043,2739.4,2739.0,0.06]
[1740225831164,3.65043,2739.4,2739.3,0.0812692]
[1740225831360,3.65043,2739.4,2739.0,0.968115]
[1740225831591,3.65043,2739.4,2739.3,0.0812692]
[1740225831808,3.65043,2739.4,2739.0,0.968115]
[1740225832011,3.65043,2739.4,2739.3,0.0812692]
[1740225832510,3.65043,2739.4,2739.0,0.968115]
[1740225832711,3.65043,2739.4,2739.3,0.0812692]
[1740225832860,3.65043,2739.4,2739.0,0.968115]
[1740225833060,3.65043,2739.4,2739.1,0.0812692]
[1740225834077,0.7838,2739.5,2739.1,0.0812692]
[1740225834397,4.43418,2739.5,2739.1,0.0812692]
[1740225834902,0.7838,2739.5,2739.1,0.0812692]
[1740225835107,3.65046,2739.4,2739.1,0.0812692]
[1740225836011,3.6507,2739.2,2739.1,0.0812692]
[1740225836443,3.65058,2739.3,2738.8,5.43]
[1740225836644,3.65058,2739.3,2739.1,0.0812692]
[1740225836938,3.65058,2739.3,2739.2,0.0812692]
[1740225837095,7.08700248,2739.4,2739.2,0.0812692]
[1740225837300,7.08700248,2739.4,2738.8,9.08121]
[1740225837540,7.08700248,2739.4,2739.3,0.08177932]
[1740225837747,10.73753248,2739.4,2738.8,9.08121]
[1740225837892,7.08700248,2739.4,2739.3,0.08177932]
[1740225838098,7.08700248,2739.4,2738.8,9.08121]
[1740225838316,10.73753248,2739.4,2739.3,0.08177932]
[1740225838596,3.65046,2739.4,2738.9,3.65102]
[1740225838798,3.65043,2739.4,2739.3,0.08177932]
[1740225839060,3.65043,2739.4,2738.9,3.65103]
[1740225839254,3.65043,2739.4,2739.3,0.08177932]
[1740225839536,7.30097,2739.4,2739.3,0.08177932]
[1740225839867,3.65057,2739.3,2738.7,3.65136]
[1740225840148,3.65057,2739.3,2738.8,0.45291532]
[1740225840801,3.65072,2739.2,2738.8,0.45291532]
[1740225841194,0.7672,2739.1,2738.8,0.08177932]
[1740225841623,4.41804,2739.1,2738.6,0.06]
[1740225841825,4.41804,2739.1,2738.9,0.08233193]
[1740225842029,4.41804,2739.1,2738.6,0.06]
[1740225842250,4.41803,2739.1,2739.0,0.08233193]
[1740225842453,4.41803,2739.1,2738.6,0.06]
[1740225842604,0.7672,2739.1,2739.0,0.08233193]
[1740225842811,0.7672,2739.1,2738.6,3.71147]
[1740225843014,0.7672,2739.1,2739.0,0.08233193]
[1740225843215,0.7672,2739.1,2738.5,3.65153]
[1740225843216,4.41804,2739.1,2738.5,3.65153]
[1740225843529,4.41804,2739.1,2738.4,5.37]
[1740225843725,3.65101,2739.0,2738.6,0.08233193]
[1740225843946,3.65101,2739.0,2738.4,9.02176]
[1740225844259,4.41804,2739.1,2738.7,0.08233193]
[1740225844444,8.06896,2739.1,2738.5,3.7116]
[1740225844615,4.41804,2739.1,2738.8,0.08233193]
[1740225844815,8.06896,2739.1,2738.5,3.7116]
[1740225845051,8.06896,2739.1,2738.9,0.08233193]
[1740225845356,3.65121,2738.9,2738.5,0.06]
[1740225845734,7.30241,2738.9,2738.5,0.06]
[1740225846066,7.3024,2738.9,2738.4,5.37]
[1740225847261,4.46333,2738.8,2738.4,5.37]
[1740225847932,3.65204,2738.2,2738.0,0.06]
[1740225848242,3.65204,2738.2,2737.9,5.37]
[1740225848432,0.8121,2738.3,2737.8,0.06]
[1740225850486,0.8121,2738.3,2737.9,3.65235]
[1740225851095,0.8121,2738.3,2737.8,3.71256]
[1740225851585,0.8121,2738.3,2737.8,4.30230991]
[1740225851948,0.8121,2738.3,2737.8,4.30222991]
[1740225852144,0.8121,2738.3,2737.9,3.65243]
[1740225852490,0.8121,2738.3,2737.8,4.30222991]
[1740225853190,0.8121,2738.7,2738.2,3.65201]
[1740225853391,0.8121,2738.7,2738.1,3.65207]
[1740225853562,0.8121,2738.7,2738.1,4.077277]
[1740225853968,0.8121,2738.7,2738.2,3.65201]
[1740225854882,0.8121,2738.7,2738.3,0.08136928]
[1740225855491,0.8121,2738.7,2738.4,0.08136928]
[1740225855873,0.8121,2738.7,2738.2,3.65202]
[1740225856070,0.8121,2738.7,2738.5,0.08136928]
[1740225856279,0.8121,2738.7,2738.2,3.65202]
[1740225856756,0.8121,2738.7,2738.3,0.08136928]
[1740225856757,3.65161,2738.6,2738.3,0.08136928]
[1740225856957,0.8121,2738.3,2737.9,5.37]
[1740225858000,0.8121,2738.3,2737.9,9.02235]
[1740225858001,0.6801,2738.3,2737.9,9.02235]
[1740225858757,0.6801,2738.3,2737.9,5.37]
[1740225859999,0.6801,2738.3,2737.9,9.02242]
[1740225860174,0.6801,2738.3,2737.9,3.65242]
[1740225860495,3.92481452,2738.8,2738.2,0.192]
[1740225860793,0.8121,2738.7,2738.2,0.576405]
[1740225860993,0.8121,2738.7,2738.2,0.192]
[1740225862406,0.8121,2738.7,2738.4,3.65168]
[1740225862692,5.31274818,2739.0,2738.7,3.65128]
[1740225863384,0.7509,2739.1,2738.7,3.65128]
[1740225863693,0.7509,2739.1,2738.8,3.65113]
[1740225864581,0.7509,2739.1,2738.7,3.65127]
[1740225864779,0.7509,2739.1,2738.7,4.035597]
[1740225864986,0.7509,2739.1,2738.7,0.384327]
[1740225869806,0.7509,2739.1,2738.8,0.08053976]
[1740225870014,0.7509,2739.1,2738.7,0.384327]
[1740225870183,0.7509,2739.1,2738.9,0.0804547]
[1740225870372,0.7509,2739.1,2738.7,0.384327]
[1740225870707,0.7509,2739.1,2739.0,0.0804547]
[1740225870866,0.7509,2739.1,2738.6,3.84339]
[1740225871067,0.7509,2739.1,2739.0,0.0804547]
[1740225871269,0.7509,2739.1,2738.6,3.84339]
[1740225871509,0.7509,2739.1,2739.0,0.0804547]
[1740225872103,0.7509,2739.1,2738.6,3.84339]
[1740225872282,0.7509,2739.1,2738.6,7.4948]
[1740225872482,0.7509,2739.1,2738.7,0.74948]
[1740225872692,0.7509,2739.1,2738.7,0.8299347]
[1740225872923,0.7509,2739.1,2738.8,3.65111]
[1740225873411,0.7509,2739.1,2738.9,0.0804547]
[1740225876019,0.761,2739.4,2739.0,3.65089]
[1740225876178,0.761,2739.4,2739.0,3.73097252]
[1740225877087,0.761,2739.4,2739.0,0.08008252]
[1740225877426,0.761,2739.4,2738.9,3.65109]
[1740225877717,0.761,2739.4,2739.1,0.08006126]
[1740225877918,0.761,2739.4,2738.9,3.65109]
[1740225878129,0.761,2739.4,2739.2,0.08006126]
[1740225878284,0.761,2739.4,2738.9,3.65109]
[1740225878486,4.41143,2739.4,2739.3,0.08006126]
[1740225878685,0.761,2739.4,2738.9,3.65109]
[1740225878930,0.761,2739.4,2739.3,0.08006126]
[1740225879392,4.41143,2739.4,2738.8,3.65122]
[1740225879598,4.41143,2739.4,2739.3,0.08006126]
[1740225879928,4.41143,2739.4,2738.8,3.65122]
[1740225880129,4.41143,2739.4,2739.3,0.08006126]
[1740225880627,4.41143,2739.4,2738.9,3.6511]
[1740225880927,0.761,2739.4,2739.3,0.08006126]
[1740225881096,0.761,2739.4,2738.9,7.3021]
[1740225881295,0.761,2739.4,2739.3,0.08006126]
[1740225881503,0.761,2739.4,2738.9,3.651]
[1740225881823,4.41144,2739.4,2739.0,0.08006126]
[1740225882600,4.48223,2739.1,2739.0,0.08006126]
[1740225882940,3.65102,2739.0,2738.4,9.02176]
[1740225883492,3.65102,2739.0,2738.5,3.65162]
[1740225884028,0.8314,2739.1,2738.5,3.65162]
[1740225884243,0.8314,2739.1,2738.5,3.65154]
[1740225884450,0.8314,2739.1,2738.6,3.65148]
[1740225884834,0.8314,2739.1,2738.7,0.07999747]
[1740225886506,4.48232,2739.1,2738.7,0.07999747]
[1740225886707,4.48232,2739.1,2738.5,3.6516]
[1740225886908,4.48232,2739.1,2738.8,0.08007191]
[1740225887105,0.8314,2739.1,2738.5,3.6516]
[1740225887331,4.48224,2739.1,2738.5,3.6516]
[1740225887530,7.08767248,2738.9,2738.4,5.37]
[1740225887704,0.7995,2738.8,2738.4,5.37]
[1740225888137,0.7995,2738.8,2738.5,0.08007191]
[1740225891065,3.43654248,2738.6,2738.5,0.08007191]
[1740225891942,0.7995,2738.5,2738.0,3.65218]
[1740225892145,0.7995,2738.5,2738.0,3.92602562]
[1740225892719,0.7995,2738.5,2738.4,0.72964716]
[1740225893259,4.45113,2738.5,2738.4,0.72964716]
[1740225893559,4.45113,2738.5,2738.0,3.65227]
[1740225893761,4.45113,2738.5,2737.9,3.84433]
[1740225893933,4.45113,2738.5,2738.0,3.6523]
[1740225894426,4.45113,2738.5,2737.9,3.84433]
[1740225894845,4.45113,2738.5,2737.9,3.65233]
[1740225895155,3.65177,2738.4,2737.9,3.65233]
[1740225895507,3.65177,2738.4,2738.0,0.902233]
[1740225896054,3.65177,2738.4,2737.9,3.65233]
[1740225897157,0.7995,2738.5,2737.9,3.65233]
[1740225897458,4.45122,2738.5,2737.9,3.65233]
[1740225898460,8.10295,2738.5,2737.9,3.65233]
[1740225898645,8.10294,2738.5,2737.9,3.65233]
[1740225898840,4.45122,2738.5,2737.9,3.65233]
[1740225899871,4.45122,2738.5,2738.0,0.08007191]
[1740225900934,0.7995,2738.5,2738.0,0.4533121]
[1740225901139,0.7995,2738.5,2738.1,3.65214]
[1740225901341,0.7995,2738.5,2738.2,0.08053976]
[1740225902260,3.71496143,2738.9,2738.3,3.65185]
[1740225902573,0.7964,2738.8,2738.5,3.65162]
[1740225902778,3.65107,2739.0,2738.5,7.30315]
[1740225902779,3.7964,2739.0,2738.5,7.30315]
[1740225902951,3.7964,2739.0,2738.6,0.0809651]
[1740225903137,3.7964,2739.0,2738.6,3.7324551]
[1740225903332,3.7964,2739.0,2738.6,0.0809651]
[1740225903738,7.44739,2739.0,2738.6,0.0809651]
[1740225903954,3.7964,2739.0,2738.6,0.0809651]
[1740225904153,0.7964,2739.3,2738.8,3.65111]
[1740225904354,0.7964,2739.3,2738.6,0.2729651]
[1740225904676,0.7964,2739.3,2738.9,3.65103]
[1740225904837,0.7964,2739.3,2738.7,3.73225383]
[1740225904838,4.44701,2739.3,2738.7,3.73225383]
[1740225905044,4.44701,2739.3,2738.7,4.40889238]
[1740225905383,4.44701,2739.3,2738.8,0.08094383]
[1740225905558,3.6511,2738.9,2738.8,0.08094383]
[1740225905879,3.6511,2738.9,2738.8,0.0805504]
[1740225906078,3.6511,2738.9,2738.4,5.37]
[1740225906255,3.6511,2738.9,2738.8,0.0797352]
[1740225906454,3.6511,2738.9,2738.4,5.37]
[1740225906759,3.6511,2738.9,2738.8,0.0797352]
[1740225906961,3.6511,2738.9,2738.4,5.37]
[1740225907138,3.6511,2738.9,2738.8,0.0797352]
[1740225907339,3.6511,2738.9,2738.4,5.37]
[1740225907547,3.6511,2738.9,2738.8,0.0797352]
[1740225907746,3.6511,2738.9,2738.4,0.92138]
[1740225907989,3.6511,2738.9,2738.8,0.0797352]
[1740225908161,3.6511,2738.9,2738.4,0.92138]
[1740225908359,3.6511,2738.9,2738.4,4.57313]
[1740225908575,3.6511,2738.9,2738.5,0.42052916]
[1740225908773,3.6511,2738.9,2738.5,0.50026436]
[1740225910180,3.6511,2738.9,2738.5,0.0797352]
[1740225910380,3.6511,2738.9,2738.3,0.192]
[1740225910568,3.65124,2738.8,2738.4,0.0797352]
[1740225911569,0.7742,2738.7,2738.2,9.02195]
[1740225911884,0.7742,2738.7,2738.3,0.07936303]
[1740225912068,0.7742,2738.7,2738.2,5.37]
[1740225912275,0.7742,2738.7,2738.4,0.07936303]
[1740225912594,0.7742,2738.7,2738.5,0.07936303]
[1740225912884,0.7742,2739.4,2738.4,0.192]
[1740225913054,0.7742,2739.4,2738.6,3.73073303]
[1740225913254,0.7742,2739.1,2738.4,4.39986]
[1740225913454,3.65105,2739.0,2738.7,0.07954378]
[1740225913685,0.7742,2739.1,2738.4,4.39986]
[1740225913984,0.7742,2739.1,2738.6,3.65144]
[1740225914189,0.7742,2739.1,2738.7,3.73089378]
[1740225914782,0.7742,2739.1,2738.7,0.07954378]
[1740225916905,0.7742,2739.1,2738.7,3.73085378]
[1740225918410,0.7742,2739.1,2738.7,0.07954378]
[1740225919074,3.65099,2739.0,2738.7,0.07954378]
[1740225919268,3.65099,2739.0,2738.5,0.46735078]
[1740225919474,3.65099,2739.0,2738.8,0.07936303]
[1740225919674,3.65099,2739.0,2738.5,0.46735078]
[1740225919910,3.65099,2739.0,2738.9,0.07936303]
[1740225920109,3.65099,2739.0,2738.5,0.46735078]
[1740225920306,3.65099,2739.0,2738.9,0.07936303]
[1740225920547,0.7742,2739.1,2738.6,4.44776208]
[1740225920816,0.7742,2739.7,2738.8,0.192]
[1740225920982,4.42432,2739.7,2738.8,5.562]
[1740225921181,3.65031,2739.5,2738.9,3.7304205]
[1740225921516,3.65053,2739.4,2738.9,1.00856255]
[1740225921687,0.7659,2739.3,2738.9,1.00856255]
[1740225922099,4.41648,2739.3,2738.9,1.00856255]
[1740225922477,4.41648,2739.3,2738.9,0.0793205]
[1740225926343,4.41648,2739.3,2738.7,3.91336]
[1740225926502,4.41648,2739.3,2739.0,0.07907596]
[1740225926707,4.41648,2739.3,2738.8,3.6512]
[1740225926908,4.41648,2739.3,2739.1,0.07907596]
[1740225927124,4.41648,2739.3,2738.7,3.91328]
[1740225927450,4.41648,2739.3,2738.7,3.91327]
[1740225927752,4.41648,2739.3,2738.8,0.07907596]
[1740225928046,4.41648,2739.3,2738.7,7.56456]
[1740225928249,4.41648,2739.3,2738.9,0.07907596]
[1740225928452,4.41648,2739.3,2738.7,3.91327]
[1740225928651,4.41648,2739.3,2739.0,0.07907596]
[1740225928838,4.41648,2739.3,2738.8,4.579527]
[1740225929148,4.41648,2739.3,2739.1,0.07907596]
[1740225929453,4.41648,2739.3,2739.2,0.07907596]
[1740225929947,3.6507,2739.2,2738.8,0.928327]
[1740225930251,3.65089,2739.1,2738.8,0.928327]
[1740225931643,4.41653,2739.3,2738.8,0.928327]
[1740225931840,8.06721,2739.3,2738.8,0.928327]
[1740225932013,4.41653,2739.3,2738.8,0.928327]
[1740225933182,0.8245,2739.6,2738.9,0.60558216]
[1740225933389,0.8245,2739.6,2738.9,3.84302]
[1740225933691,0.8245,2739.6,2739.1,3.65074]
[1740225934472,4.47474,2739.6,2739.1,3.65074]
[1740225934684,0.8245,2739.6,2739.1,3.65074]
[1740225934866,4.47475,2739.6,2739.1,3.65074]
[1740225936289,4.47475,2739.6,2738.9,3.84302]
[1740225936591,4.47475,2739.6,2739.0,4.572242]
[1740225937367,0.8245,2739.6,2739.0,0.921302]
[1740225937571,0.8245,2739.8,2739.5,3.65025]
[1740225937791,0.8245,2740.0,2739.5,3.84225]
[1740225938020,4.47415,2740.0,2739.5,0.192]
[1740225938316,3.64976,2739.9,2739.5,0.192]
[1740225942317,7.29962,2739.9,2739.5,0.192]
[1740225942481,3.64976,2739.9,2739.5,0.192]
[1740225943116,0.8245,2740.0,2739.6,3.6501]
[1740225943583,0.8245,2740.0,2739.5,3.84218]
[1740225943777,0.8245,2740.0,2739.5,4.26278716]
[1740225943994,0.8245,2740.0,2739.6,0.22719452]
[1740225943995,4.47414,2740.0,2739.6,0.22719452]
[1740225944183,4.47418,2740.0,2739.6,0.22719452]
[1740225945042,10.89554248,2740.1,2739.6,3.87734452]
[1740225945223,10.89554248,2740.1,2739.6,0.22719452]
[1740225945395,14.54506248,2740.1,2739.7,0.44899817]
[1740225945946,14.54506248,2740.1,2739.8,0.22719452]
[1740225946297,14.54506248,2740.1,2739.7,0.44899817]
[1740225946630,14.54506248,2740.1,2739.8,0.22719452]
[1740225946825,14.54506248,2740.1,2739.7,0.44899817]
[1740225947022,14.54506248,2740.1,2739.8,0.22719452]
[1740225947213,14.54506248,2740.1,2739.7,0.44899817]
[1740225947412,14.54506248,2740.1,2739.8,0.22719452]
[1740225947633,14.54506248,2740.1,2739.7,0.44899817]
[1740225947836,7.459,2740.1,2739.9,3.84172]
[1740225948231,4.22484248,2740.4,2740.1,3.64948]
[1740225948397,4.22484248,2740.7,2740.2,0.22719452]
[1740225948596,4.22484248,2740.7,2740.3,0.192]
[1740225948909,3.64896,2740.5,2740.4,0.22660999]
[1740225949322,3.64896,2740.5,2740.1,0.192]
[1740225949525,3.64896,2740.5,2740.4,0.22660999]
[1740225949947,3.64896,2740.5,2740.1,0.576172]
[1740225950251,3.64896,2740.5,2740.2,0.22660999]
[1740225950609,6.43654248,2740.7,2740.3,0.192]
[1740225950944,3.64904,2740.5,2740.3,0.192]
[1740225951142,3.64904,2740.5,2740.4,0.22660999]
[1740225951521,4.43734,2740.5,2740.4,0.22660999]
[1740225951744,4.43734,2740.5,2740.1,0.192]
[1740225952230,4.43734,2740.5,2740.2,0.22660999]
[1740225952741,3.64923,2740.3,2740.2,0.22660999]
[1740225953149,3.64953,2740.1,2739.8,5.37]
[1740225953303,3.64953,2740.1,2739.9,0.5562]
[1740225953508,3.64953,2740.1,2739.7,0.192]
[1740225954142,3.64923,2740.3,2739.7,0.192]
[1740225954340,7.29858,2740.3,2739.7,0.192]
[1740225956153,3.64944,2740.2,2739.7,0.192]
[1740225957962,3.64957,2740.1,2739.7,0.192]
[1740225958131,3.64957,2740.1,2739.7,0.602427]
[1740225958864,3.64963,2740.0,2739.7,0.602427]
[1740225959537,3.64957,2740.1,2739.7,0.602427]
[1740225959739,3.64938,2740.2,2739.9,0.192]
[1740225960469,3.64938,2740.2,2740.0,0.22597249]
[1740225961652,3.6495,2740.1,2740.0,0.22597249]
[1740225961850,4.4698,2740.1,2739.4,5.562]
[1740225962168,3.64975,2740.0,2739.5,0.22597249]
[1740225962524,7.29947,2740.0,2739.5,0.22597249]
[1740225962725,3.64972,2740.0,2739.6,0.94383925]
[1740225963130,3.64971,2740.0,2739.6,0.94383925]
[1740225963336,3.64971,2740.0,2739.7,0.22597249]
[1740225964058,3.64991,2739.8,2739.4,5.562]
[1740225964266,3.6503,2739.5,2739.4,5.562]
[1740225964479,3.6503,2739.5,2739.4,0.192]
[1740225964630,3.6503,2739.5,2739.2,0.192]
[1740225964829,3.6503,2739.5,2739.2,1.120295]
[1740225965356,3.6503,2739.5,2739.2,0.192]
[1740225965547,3.65016,2739.6,2738.8,5.37]
[1740225965728,3.65066,2739.3,2738.9,0.192]
[1740225965931,3.65083,2739.1,2738.9,0.192]